Cogmind - Beta 10.2 --- EXPLORER MODE // 2022.01.03 @ 15:53:55 Player: Old Hroft Result: Self-destructed Performance ------------- Evolutions (1) 500 Regions Visited (2) 400 Robots Destroyed (15) 75 Value Destroyed (321) 321 Prototype IDs (3) 60 Alien Tech Used (0) 0 Bonus (0) 0 TOTAL SCORE: 1356 Bonus ------- None Cogmind --------- Core Integrity 400/400 Matter 99/300 Energy 280/280 System Corruption 2% Temperature Cool (25) Movement Walking (150) Ox1 Location -9/Materials Parts ------- > --- POWER (1) -------- Heavy Ion Engine > --- PROPULSION (2) --- Aluminum Leg Aluminum Leg > --- UTILITY (4) ------ Heat Sink Medium Storage Unit Sensor Array Signal Interpreter > --- WEAPON (3) ------- Particle Gun Flak Cannon Flak Cannon > --- INVENTORY (8) ---- Nuclear Core Aluminum Leg Aluminum Leg EM Shotgun Particle Gun Flak Cannon Flak Cannon Peak State ------------ > --- POWER ------------ Nuclear Core > --- PROPULSION ------- Aluminum Leg Aluminum Leg > --- UTILITY ---------- Heat Sink Medium Storage Unit Sensor Array Signal Interpreter > --- WEAPON ----------- Particle Gun Flak Cannon Flak Cannon > --- INVENTORY -------- Nuclear Core Aluminum Leg Aluminum Leg EM Shotgun Particle Gun Flak Cannon Flak Cannon [Rating: 18] Favorites ----------- Power Ion Engine Engine Ion Engine Power Core Nuclear Core Propulsion Aluminum Leg Leg Aluminum Leg Wheel Armored Wheel Utility Signal Interpreter Device Sensor Array Storage Medium Storage Unit Processor Signal Interpreter Weapon Shotgun Energy Gun Particle Gun Ballistic Gun Shotgun Ballistic Cannon Flak Cannon Build | -11 -10 -9 ------- Run | Scr Mat Mat Slots Evolved 3 | . 1 2 Power . | . . . Propulsion . | . . . Utility 2 | . 1 1 Weapon 1 | . . 1 Parts Attached 26 | 7 12 7 Power 4 | 1 1 2 Engine 3 | 1 1 1 Core 1 | . . 1 Reactor . | . . . Propulsion 6 | 2 4 . Treads . | . . . Leg 4 | 2 2 . Wheel 2 | . 2 . Hover . | . . . Flight . | . . . Utility 6 | 1 4 1 Device 4 | 1 2 1 Storage 1 | . 1 . Processor 1 | . 1 . Hackware . | . . . Protection . | . . . Artifact . | . . . Weapon 10 | 3 3 4 Energy Gun 5 | 2 1 2 Energy Cannon . | . . . Ballistic Gun 3 | 1 2 . Ballistic Cannon 2 | . . 2 Launcher . | . . . Special Weapon . | . . . Impact Weapon . | . . . Slashing Weapon . | . . . Piercing Weapon . | . . . Special Melee Weapon . | . . . Unidentified Prototypes 1 | . . 1 Parts Lost . | . . . Power . | . . . Propulsion . | . . . Utility . | . . . Weapon . | . . . Highest Loss Streak . | . . . Average Slot Usage (%) 96 | . 96 94 Engine 10 | . 11 5 Leg 22 | . 22 20 Wheel 1 | . 2 . Device 14 | . 13 16 Storage 8 | . 8 10 Processor 10 | . 11 10 Energy Gun 5 | . 4 8 Ballistic Gun 17 | . 20 6 Ballistic Cannon 2 | . . 13 Naked Turns . | . . . Heaviest Build 33 | 10 20 33 Greatest Support 24 | 20 24 20 Greatest Overweight (x) 6 | 1 6 1 Average Overweight (x) . | . . . Largest Inventory Capacity 8 | 4 8 8 Average Capacity 6 | 4 6 8 Most Carried 8 | 1 8 8 Average Carried 5 | . 4 7 Final Capacity 8 | 4 8 8 Final Carried 8 | . 8 7 Class Distribution -------------------- 71% | Hacker-Mutant 28% | Hacker-Skirmisher Dominant Class ---------------- Hacker-Mutant | -10/Materials Hacker-Skirmisher | -9/Materials Resources | -11 -10 -9 ----------- Run | Scr Mat Mat Matter Collected 474 | 144 229 101 Remotely . | . . . Salvage Created 427 | 30 296 101 Parts 35 | 1 28 6 Haulers Intercepted 1 | . . 1 Recyclers Shooed . | . . . Parts Field Recycled . | . . . Retrieved Matter . | . . . Parts Self-Destructed . | . . . Prevented . | . . . Kills | -11 -10 -9 ------- Run | Scr Mat Mat Combat Hostiles Destroyed 7 | . 6 1 Guns 6 | . 6 . Cannons 1 | . . 1 Classes Destroyed 5 | 1 3 1 Tunneler 1 | 1 . . Hauler 1 | . . 1 Watcher 6 | . 3 3 Swarmer 2 | . 2 . Grunt 5 | . 4 1 Best Kill Streak 2 | 1 2 2 Combat Bots Only 2 | . 2 1 Max Kills in Single Turn 2 | 1 2 2 Gunslinging 1 | . 1 . Exploded . | . . . Melee . | . . . Uniques/NPCs Destroyed . | . . . Combat | -11 -10 -9 -------- Run | Scr Mat Mat Damage Taken 113 | . 99 14 Core 9 | . 9 . Absorbed by Shields . | . . . Core Remaining (%) 98 | 100 96 . Volleys Fired 35 | 2 23 10 Largest 3 | 1 2 3 Hottest 153 | 40 70 153 Shots Fired 76 | 2 45 29 Gun 57 | 2 45 10 Cannon 19 | . . 19 Launcher . | . . . Special . | . . . Kinetic 50 | . 31 19 Thermal 24 | . 14 10 Explosive . | . . . Electromagnetic 2 | 2 . . Robot Hit Streak 15 | 2 15 12 Robot Miss Streak 3 | . 3 3 Penetration Max . | . . . Secondary Targets 1 | . 1 . Max Gunslinging Chain 1 | . 1 . Shots Hit Robots 57 | 2 32 23 Core Hits 32 | 2 17 13 Critical Hits 1 | . 1 . Critical Kills 1 | . 1 . Critical Parts Destroyed . | . . . Melee Attacks . | . . . Impact . | . . . Slashing . | . . . Piercing . | . . . Sneak Attacks . | . . . Combat Hostiles . | . . . Follow-up Attacks . | . . . Damage Inflicted 646 | 24 359 263 Guns 477 | 24 359 94 Cannons 169 | . . 169 Explosions . | . . . Melee . | . . . Ramming . | . . . Kinetic 376 | . 207 169 Thermal 246 | . 152 94 Explosive . | . . . Electromagnetic 24 | 24 . . Impact . | . . . Slashing . | . . . Piercing . | . . . Highest Corruption 2 | . 1 2 Average Corruption 1 | . 1 1 Corruption Purged . | . . . Effects 1 | . 1 . Message Errors 1 | . 1 . Overload Shots . | . . . Overflow Damage 1 | . . 1 Projectiles 1 | . . 1 Explosions . | . . . Melee . | . . . Knockbacks 2 | . . 2 Impact . | . . . Kinetic 2 | . . 2 Secondary . | . . . Self-Inflicted Damage . | . . . Shots . | . . . Rammed 1 | . 1 . Targets Rammed 2 | . 1 1 Kicked 1 | . . 1 Crushed . | . . . Highest Temperature 186 | . 102 186 Average Temperature 41 | . 32 50 Received Heat Transfer 87 | . 75 12 Siege Activations . | . . . Robots Corrupted . | . . . Combat Hostiles . | . . . Parts Fried . | . . . Impact Corruptions . | . . . Robots Melted . | . . . Combat Hostiles . | . . . Parts Melted . | . . . Heat Transferred 666 | . 444 222 Parts Sabotaged . | . . . Parts Stolen . | . . . Parts Stripped . | . . . Power Chain Reactions . | . . . Missiles Intercepted . | . . . Alert | -11 -10 -9 ------- Run | Scr Mat Mat Peak Influence 186 | 5 186 108 Initial 2 | . 2 . Average 38 | 3 38 46 Maximum Alert Level . | . . . Low Security (%) 100 | 100 100 100 Level 1 . | . . . Level 2 . | . . . Level 3 . | . . . Level 4 . | . . . Level 5 . | . . . High Security . | . . . Max Security . | . . . Squads Dispatched 1 | . . 1 Investigation . | . . . Extermination . | . . . Reinforcement 1 | . . 1 Assault . | . . . Garrison . | . . . Intercept . | . . . Construction Impeded . | . . . Haulers Reinforced . | . . . Stealth | -11 -10 -9 --------- Run | Scr Mat Mat Distress Signals . | . . . Communications Jammed . | . . . Distress Signals . | . . . Times Spotted 17 | . 12 5 Peak Tracking Total 2 | . 2 2 Tactical Retreats . | . . . Traps | -11 -10 -9 ------- Run | Scr Mat Mat Traps Triggered 2 | . . 2 Indirectly . | . . . Trap Hack Attempts . | . . . Triggered . | . . . Disarmed . | . . . Reprogrammed . | . . . Reused . | . . . Traps Extracted . | . . . Installed . | . . . Triggered . | . . . Machines | -11 -10 -9 ---------- Run | Scr Mat Mat Machines Disabled . | . . . Max in Single Turn . | . . . Machines Sabotaged . | . . . Garrisons Compromised . | . . . Overloaded Fab Kills . | . . . Fab Network Shutdowns . | . . . Hacking | -11 -10 -9 --------- Run | Scr Mat Mat Machines Accessed 8 | . 6 2 Terminals 5 | . 4 1 Fabricators . | . . . Repair Stations 1 | . 1 . Recycling Units 2 | . 1 1 Scanalyzers . | . . . Garrison Access . | . . . Total Hacks 29 | . 20 9 Successful 25 | . 17 8 Failed 4 | . 3 1 Catastrophic . | . . . Database Lockouts . | . . . Manual . | . . . Terminals 23 | . 16 7 Fabricators . | . . . Repair Stations 2 | . 2 . Recycling Units 4 | . 2 2 Scanalyzers . | . . . Garrison Access . | . . . Terminal Hacks 21 | . 15 6 Prototype ID Bank 1 | . 1 . Emergency Access Points 3 | . 2 1 Terminal Index 1 | . 1 . Scanalyzer Index 1 | . 1 . Alert Level 2 | . 1 1 Locate Traps 3 | . 3 . Maintenance Status 1 | . 1 . Security Status 1 | . 1 . Transport Status 1 | . 1 . Reinforcement Status 1 | . . 1 Assault Status 1 | . . 1 Hauler Manifests 1 | . 1 . Registered Components 2 | . 1 1 Zone Layout 2 | . 1 1 Fabricator Hacks . | . . . Repair Station Hacks 2 | . 2 . Scan Component 1 | . 1 . Repair 1 | . 1 . Recycling Unit Hacks 2 | . . 2 Retrieve Matter 1 | . . 1 Retrieve Components 1 | . . 1 Scanalyzer . | . . . Garrison Access Hacks . | . . . Unauthorized Hacks . | . . . Terminals . | . . . Fabricators . | . . . Repair Stations . | . . . Recycling Units . | . . . Scanalyzers . | . . . Garrison Access . | . . . Data Cores Recovered . | . . . Used . | . . . Hacking Detections 7 | . 6 1 Full Trace Events . | . . . Feedback Events . | . . . Feedback Blocked . | . . . Robot Schematics Acquired . | . . . Robots Built . | . . . Matter . | . . . Time . | . . . Total Robot Build Rating . | . . . Part Schematics Acquired . | . . . Parts Built . | . . . Matter . | . . . Time . | . . . Total Part Build Rating . | . . . Parts Repaired 1 | . 1 . Time 26 | . 26 . Parts Recycled . | . . . Recycled Matter . | . . . Retrieved Matter . | . . . Retrieved Components 3 | . . 3 Parts Scanalyzed . | . . . Part Schematics Acquired . | . . . Parts Damaged . | . . . Bothacking | -11 -10 -9 ------------ Run | Scr Mat Mat Used RIF Installer . | . . . Robots Hacked . | . . . Non-combat . | . . . Combat . | . . . Robot Hacks Applied . | . . . Relay Couplers Released . | . . . Robots Rewired . | . . . Allies Hacked . | . . . Hacks Repelled . | . . . Allies | -11 -10 -9 -------- Run | Scr Mat Mat Total Allies . | . . . Largest Group . | . . . Highest-Rated Group . | . . . Highest-Rated Ally . | . . . Total Orders . | . . . Ally Attacks . | . . . Total Damage . | . . . Kills . | . . . Allies Corrupted . | . . . Allies Melted . | . . . Intel | -11 -10 -9 ------- Run | Scr Mat Mat Robot Analysis Total . | . . . Derelict Logs Recovered . | . . . Drone Launches . | . . . Drone Recoveries . | . . . Exploration | -11 -10 -9 ------------- Run | Scr Mat Mat Turns Passed 1618 | 75 1242 301 Spaces Moved 1150 | 53 926 171 Core 9 | 8 1 . Treads . | . . . Legs 1056 | 45 840 171 Wheels 85 | . 85 . Hover . | . . . Flight . | . . . Fastest Speed 50 | 50 90 120 Average Speed 121 | 112 117 144 Slowest Speed 350 | 120 350 150 Overloaded Moves . | . . . Propulsion Burnouts . | . . . Robots Hopped . | . . . Cave-ins Triggered . | . . . Exploration Rate (%) 37 | 3 92 18 Regions Visited 2 Branch Regions . Pre-discovered Areas . | . . . Known Exits Taken 2 | 1 1 . Unknown Exits Taken . | . . . Scrap Searched . | . . . Spaces Dug . | . . . Terrain Destroyed . | . . . Melee . | . . . Projectile . | . . . AOE . | . . . Terrain Rammed . | . . . Walls Destroyed . | . . . Machines Disabled . | . . . Actions | -11 -10 -9 --------- Run | Scr Mat Mat Total 1305 | 64 1037 204 Wait 46 | . 46 . Move 1148 | 52 925 171 Hop . | . . . Pick Up 18 | 1 12 5 Fast Attach 20 | 6 10 4 Attach 4 | 1 . 3 Detach 8 | 1 5 2 Swap 2 | . 2 . Drop 22 | 1 13 8 Fire 35 | 2 23 10 Melee . | . . . Ram . | . . . Kick 2 | . 1 1 Crush . | . . . Escape Stasis . | . . . Rewire . | . . . Trap . | . . . Miscellaneous . | . . . Route ------- -11/Scrapyard -10/Materials (discovered 4 exits: *Mat x3 / *Min) -9/Materials History --------- Turn | Location | Event 14 | -11/Scrapyard | Identified exit to Materials 14 | -11/Scrapyard | Discovered exit to Materials (range 15) 76 | -11/Scrapyard | Entered Materials 76 | -10/Materials | Evolved 1 slot: Utility x1 171 | -10/Materials | Identified exit to Materials 171 | -10/Materials | Discovered exit to Materials (range 9) 296 | -10/Materials | Identified exit to Mines 296 | -10/Materials | Discovered exit to Mines (range 13) 712 | -10/Materials | Discovered exit to Materials (range 14) 755 | -10/Materials | Build established: Hacker-Mutant 905 | -10/Materials | Repaired Ion Engine 913 | -10/Materials | Discovered exit to Materials (range 3) 1318 | -10/Materials | Entered another Materials area 1318 | -9/Materials | Evolved 2 slots: Utility x1, Weapon x1 1619 | -9/Materials | Self-destructed Last Messages --------------- 01536_ A-02 Transporter destroyed. 01541_ Acquired 12 matter. 01542_ Acquired 39 matter. 01545_ Acquired Prototype Engine. 01546_ Dropped Nuclear Core. 01547_ Identified Hvy. Ion Engine. 01548_ Dropped Nuclear Core. 01551_ Acquired Nuclear Core. 01557_ O-16 Technician: "IFF HANDSHAKE FAILED. SECURING TERMINAL." 01564_ ALERT: Hostiles spotted, dispatching reinforcements to Terminal M006. 01566_ Triggered Shock Trap. 01566_ The floor emits a surge of raw power. 01566_ System corrupted (+1). 01567_ K-01 Serf collects debris. 01567_ Triggered Shock Trap. 01567_ The floor emits a surge of raw power. 01567_ System corrupted (+1). 01571_ K-01 Serf collects debris. 01576_ U-05 Engineer lays Concrete. Map ----- +----------------------------------------------------+ | ?????????????????# ?????????????# #???# ######## | | ?????????????????# ????????????# #???# ## =** | | ?????????????????# ???????????# #???# ##""* * | | ???????????####### ############ ##### ##"Y*]** | | ?????????? #""=!"" | | ?????????? ^ + !""" | | ?????????? ^^ # """ | | ?????????????????+###### ### #### # """ | | ???????????????????????# #?# #??# # "" | | ???????????????????????# #?#]]//!!#??# ####### | | ???????????????????????# #?#]]//!!#??# #?????? | | ???????????????????????# #?########??# #?????? | | ???????????????????????# #???????????# #?????? | | ???????????????????????# #???????????# #?????? | | ???????????????????????# #???????????# #?????? | | ???????????????????????# #???????????# #?????? | | ???????????????????????# #???????????# #?????? | | ???????????????????????# #???????????# #?????? | | ???????????????????????# #???????????# #?????? | | ???????????????????????# #???????????# #?????? | | ???????????????????????# #???????????? ??????? | | ???????????????????????# #???????????? ##??????? | | ???????????????????????# #?????????????????????? | | ???????????????????????# #??????x??????????????? | | ???????????????????????# #?????????????????????? | | ???????????????????????# @ #?????????????????????? | | ????????????????x??????# x?????????????????? | | ???????????????????????# ??????????????? | | ???????????????????????# #????????????? | | ???????????????????????##+#+### ! #????????????? | | ???????????????????????????????? ##????????????? | | ????????????????????????????????? #?????????????? | | ?????????????????????????????????? #?????????????? | | ???????????????????????????????????#?????????????? | | ?????????????????????????????????????????????????? | | ?????????????????????????????????????????????????? | | ?????????????????????????????????????????????????? | | ?????????????????????????????????????????????????? | | ?????????????????????????????????????????????????? | | ?????????????????????????????????????????????????? | | ?????????????????????????????????????????????????? | | ?????????????????????????????????????????????????? | | ?????????????????????????????????????????????????? | | ?????????????????????????????????????????????????? | | ?????????????????????????????????????????????????? | | ?????????????????????????????????????????????????? | | ?????????????????????????????????????????????????? | | ?????????????????????????????????????????????????? | | ?????????????????????????????????????????????????? | | ?????????????????????????????????????????????????? | +----------------------------------------------------+ Best States ------------- Heat Dissipation 38 Energy Generation 14 Energy Capacity 280 Matter Stores 300 Matter Capacity 300 Sight Range 16 Robot Scan Range 10 Terrain Scan Range 14 Terrain Scan Density 10 Resistance: KI 35 Resistance: TH 35 Resistance: EX 35 Resistance: EM 35 Resistance: I 35 Resistance: S 35 Resistance: P 35 Evasion (%) 42 Offensive Hacking 20 Item Schematics ----------------- None Robot Schematics ------------------ None Fabricated ------------ Nothing Alien Tech Used ----------------- None Achievements -------------- More Dakka Please Challenges ------------ None Game ------ Seed ThiefMasterJammer Manual? 0 Play Time 00:35:26 Cumulative 5.8 hours Start 2022.01.03 @ 11:26:44 End 2022.01.03 @ 15:53:55 Sessions 3 Manual Loads 0 Difficulty Explorer Special Mode None Game No. 5 Rogue 0 Adventurer 0 Explorer 5 Win Type - Total 0 Types 0/0/0/0/0/0/0/0/0 Lore% 4 Gallery% 10 Achievement% 8 Wizard Run 0 Options --------- ASCII 0 Keyboard 0 Movement Mouse Keybinds 0 Fullscreen 1 Font 36/Smallcaps Map View 76x50 Tactical HUD 1 Map Filters NONE Filters NONE Steam 1 RUN: ed1e4422-e36d-4ae0-928e-91da8df38072